Cogmind - Beta 10.2 *** ADVENTURER MODE // 2021.08.03 @ 17:07:45 Player: darlorth Result: Destroyed by as-79218 with Assembled F-torch Performance ------------- Evolutions (0) 0 Regions Visited (4) 800 Robots Destroyed (30) 150 Value Destroyed (512) 512 Prototype IDs (23) 460 Alien Tech Used (0) 0 Bonus (300) 300 TOTAL SCORE: 2222 Bonus ------- Aligned with FarCom 300 Cogmind --------- Core Integrity 0/250 Matter 300/300 Energy 100/100 System Corruption 0% Temperature Cool (20) Movement Core (200) Ox3 Location -9/Mines Parts ------- > --- POWER (1) -------- (None) > --- PROPULSION (2) --- (None) > --- UTILITY (2) ------ Medium Storage Unit Power Shielding > --- WEAPON (2) ------- Makeshift Sword > --- INVENTORY (8) ---- Aluminum Leg Large Storage Unit Signal Interpreter Peak State ------------ > --- POWER ------------ Light Ion Engine > --- PROPULSION ------- Light Treads Light Treads > --- UTILITY ---------- Small Storage Unit Weapon Shielding > --- WEAPON ----------- Light Assault Rifle Light Cannon > --- INVENTORY -------- Light Ion Engine Large Storage Unit Medium Laser Small Laser Rocket Launcher Makeshift Sword [Rating: 8] Favorites ----------- Power Light Ion Engine Engine Light Ion Engine Propulsion Light Treads Treads Light Treads Wheel Wheel Utility Small Storage Unit Storage Small Storage Unit Protection Weapon Shielding Weapon Light Cannon Energy Gun Small Laser Ballistic Gun Light Assault Rifle Ballistic Cannon Light Cannon Launcher Rocket Launcher Slashing Weapon Makeshift Sword Build | -11 -10 -10 -10 -9 ------- Run | Scr Mat Min Exi Min Slots Evolved . | . . . . . Power . | . . . . . Propulsion . | . . . . . Utility . | . . . . . Weapon . | . . . . . Parts Attached 26 | 6 5 10 1 4 Power 3 | 1 . 2 . . Engine 3 | 1 . 2 . . Core . | . . . . . Reactor . | . . . . . Propulsion 5 | 2 . 3 . . Treads 3 | 2 . 1 . . Leg . | . . . . . Wheel 2 | . . 2 . . Hover . | . . . . . Flight . | . . . . . Utility 4 | 1 1 1 1 . Device . | . . . . . Storage 2 | 1 . . 1 . Processor . | . . . . . Hackware . | . . . . . Protection 2 | . 1 1 . . Artifact . | . . . . . Weapon 14 | 2 4 4 . 4 Energy Gun 5 | 2 1 . . 2 Energy Cannon . | . . . . . Ballistic Gun 3 | . 1 2 . . Ballistic Cannon 2 | . 1 1 . . Launcher 3 | . 1 1 . 1 Special Weapon . | . . . . . Impact Weapon . | . . . . . Slashing Weapon 1 | . . . . 1 Piercing Weapon . | . . . . . Special Melee Weapon . | . . . . . Unidentified Prototypes . | . . . . . Parts Lost 12 | . . 6 . 6 Power 3 | . . 2 . 1 Propulsion 4 | . . 2 . 2 Utility . | . . . . . Weapon 5 | . . 2 . 3 Highest Loss Streak 6 | . . 4 . 6 Average Slot Usage (%) 88 | . 89 95 71 58 Engine 12 | . 14 13 14 4 Treads 22 | . 28 24 14 5 Wheel 3 | . . 2 14 6 Storage 14 | . 14 14 14 14 Protection 11 | . 4 14 14 14 Energy Gun 2 | . 11 . . 3 Ballistic Gun 8 | . 5 12 . . Ballistic Cannon 8 | . 11 10 . . Naked Turns . | . . . . . Heaviest Build 16 | 10 12 15 12 16 Greatest Support 40 | 40 40 40 10 10 Greatest Overweight (x) 3 | . . 1 1 3 Average Overweight (x) . | . . . . 1 Largest Inventory Capacity 8 | 6 6 6 8 8 Average Capacity 6 | 5 6 6 6 8 Most Carried 7 | 4 6 6 6 7 Average Carried 4 | 1 4 5 6 4 Final Capacity 8 | 6 6 6 8 8 Final Carried 6 | 2 6 6 6 3 Class Distribution -------------------- 97% | Mutant Dominant Class ---------------- Mutant | -10/Materials Mutant | -10/Mines Mutant | -10/Exiles Mutant | -9/Mines Resources | -11 -10 -10 -10 -9 ----------- Run | Scr Mat Min Exi Min Matter Collected 804 | 260 132 315 . 97 Remotely . | . . . . . Salvage Created 700 | 62 147 392 . 99 Parts 56 | 11 10 34 . 1 Haulers Intercepted 1 | . 1 . . . Recyclers Shooed 1 | . . . . 1 Parts Field Recycled . | . . . . . Retrieved Matter . | . . . . . Parts Self-Destructed . | . . . . . Prevented . | . . . . . Kills | -11 -10 -10 -10 -9 ------- Run | Scr Mat Min Exi Min Combat Hostiles Destroyed 27 | . 4 13 . 10 Melee 2 | . . . . 2 Guns 8 | . 1 7 . . Cannons 3 | . . 3 . . AOE 14 | . 3 3 . 8 Classes Destroyed 8 | 1 4 2 . 1 Worker 5 | . 1 4 . . Builder 2 | . . 1 . 1 Tunneler 5 | 4 1 . . . Hauler 1 | . 1 . . . Swarmer 9 | . 3 6 . . Grunt 6 | . 1 5 . . Sentry 2 | . . 2 . . Assembled 10 | . . . . 10 Best Kill Streak 10 | 3 3 3 . 10 Combat Bots Only 10 | . 3 3 . 10 Max Kills in Single Turn 3 | 1 2 2 . 3 Gunslinging . | . . . . . Exploded 3 | . 2 2 . 3 Melee 1 | . . . . 1 Uniques/NPCs Destroyed . | . . . . . Combat | -11 -10 -10 -10 -9 -------- Run | Scr Mat Min Exi Min Damage Taken 1399 | . 123 891 . 385 Core 254 | . 15 154 . 85 Absorbed by Shields . | . . . . . Core Remaining (%) 100 | 100 . . . . Volleys Fired 98 | 10 18 61 . 9 Largest 2 | 2 2 2 . 2 Hottest 90 | 90 75 55 . 90 Shots Fired 172 | 20 34 107 . 11 Gun 111 | 20 16 71 . 4 Cannon 49 | . 16 33 . . Launcher 12 | . 2 3 . 7 Special . | . . . . . Kinetic 127 | . 23 104 . . Thermal 33 | 20 9 . . 4 Explosive 12 | . 2 3 . 7 Electromagnetic . | . . . . . Robot Hit Streak 41 | 12 8 35 . 41 Robot Miss Streak 3 | 3 2 1 . 1 Penetration Max . | . . . . . Secondary Targets . | . . . . . Shots Hit Robots 150 | 15 21 100 . 14 Core Hits 68 | 5 9 36 . 18 Critical Hits 2 | . . 2 . . Critical Kills 1 | . . 1 . . Critical Parts Destroyed 1 | . . 1 . . Melee Attacks 6 | . . . . 6 Impact . | . . . . . Slashing 6 | . . . . 6 Piercing . | . . . . . Sneak Attacks 3 | . . . . 3 Combat Hostiles . | . . . . . Follow-up Attacks . | . . . . . Damage Inflicted 2926 | 191 377 1259 . 1099 Guns 883 | 191 114 531 . 47 Cannons 647 | . 174 473 . . Explosions 943 | . 89 255 . 599 Melee 453 | . . . . 453 Ramming . | . . . . . Kinetic 1228 | . 224 1004 . . Thermal 302 | 191 64 . . 47 Explosive 943 | . 89 255 . 599 Electromagnetic . | . . . . . Impact . | . . . . . Slashing 453 | . . . . 453 Piercing . | . . . . . Highest Corruption . | . . . . . Average Corruption . | . . . . . Corruption Purged . | . . . . . Overload Shots . | . . . . . Overflow Damage 242 | . 6 41 . 195 Projectiles 6 | . 6 . . . Explosions 58 | . . 41 . 17 Melee 178 | . . . . 178 Knockbacks 6 | . 5 1 . . Impact . | . . . . . Kinetic 6 | . 5 1 . . Secondary . | . . . . . Self-Inflicted Damage 103 | . . 78 . 25 Shots 4 | . . 3 . 1 Rammed . | . . . . . Targets Rammed . | . . . . . Kicked . | . . . . . Crushed . | . . . . . Highest Temperature 210 | 210 30 87 . 60 Average Temperature 41 | 83 15 36 . 33 Received Heat Transfer 540 | . 63 417 . 60 Siege Activations . | . . . . . Robots Corrupted . | . . . . . Combat Hostiles . | . . . . . Parts Fried . | . . . . . Impact Corruptions . | . . . . . Robots Melted . | . . . . . Combat Hostiles . | . . . . . Parts Melted 1 | 1 . . . . Heat Transferred 782 | 508 150 . . 124 Parts Sabotaged . | . . . . . Parts Stolen . | . . . . . Parts Stripped . | . . . . . Power Chain Reactions . | . . . . . Missiles Intercepted . | . . . . . Alert | -11 -10 -10 -10 -9 ------- Run | Scr Mat Min Exi Min Peak Influence 178 | 20 178 125 . 20 Initial 11 | . 11 . . . Average 48 | 11 109 38 . 2 Maximum Alert Level . | . . . . . Low Security (%) 100 | 100 100 100 . 100 Level 1 . | . . . . . Level 2 . | . . . . . Level 3 . | . . . . . Level 4 . | . . . . . Level 5 . | . . . . . High Security . | . . . . . Max Security . | . . . . . Squads Dispatched 2 | . 1 1 . . Investigation 2 | . 1 1 . . Extermination . | . . . . . Reinforcement . | . . . . . Assault . | . . . . . Garrison . | . . . . . Intercept . | . . . . . Construction Impeded . | . . . . . Haulers Reinforced . | . . . . . Stealth | -11 -10 -10 -10 -9 --------- Run | Scr Mat Min Exi Min Distress Signals . | . . . . . Communications Jammed . | . . . . . Distress Signals . | . . . . . Times Spotted 41 | . 12 14 . 15 Peak Tracking Total 7 | . 5 3 . 7 Tactical Retreats 2 | . . 1 . 1 Traps | -11 -10 -10 -10 -9 ------- Run | Scr Mat Min Exi Min Traps Triggered . | . . . . . Indirectly . | . . . . . Trap Hack Attempts . | . . . . . Triggered . | . . . . . Disarmed . | . . . . . Reprogrammed . | . . . . . Reused . | . . . . . Traps Extracted . | . . . . . Installed . | . . . . . Triggered . | . . . . . Exploded 1 | . . . 1 . Machines | -11 -10 -10 -10 -9 ---------- Run | Scr Mat Min Exi Min Machines Disabled 8 | . 6 2 . . Max in Single Turn 2 | . 2 2 . . Machines Sabotaged . | . . . . . Garrisons Compromised . | . . . . . Overloaded Fab Kills . | . . . . . Fab Network Shutdowns . | . . . . . Hacking | -11 -10 -10 -10 -9 --------- Run | Scr Mat Min Exi Min Machines Accessed 8 | . 2 1 5 . Terminals 3 | . 2 1 . . Fabricators . | . . . . . Repair Stations . | . . . . . Recycling Units . | . . . . . Scanalyzers . | . . . . . Garrison Access . | . . . . . Total Hacks 60 | . 7 3 50 . Successful 53 | . 2 1 50 . Failed 7 | . 5 2 . . Catastrophic . | . . . . . Database Lockouts . | . . . . . Manual 11 | . 7 3 1 . Terminals 10 | . 7 3 . . Fabricators . | . . . . . Repair Stations . | . . . . . Recycling Units . | . . . . . Scanalyzers . | . . . . . Garrison Access . | . . . . . Terminal Hacks 53 | . 2 1 50 . Record 49 | . . . 49 . Part Schematic 1 | . 1 . . . Terminal Index 1 | . 1 . . . Unreport Threat 1 | . . 1 . . EX-Prototype ID Bank 1 | . . . 1 . Fabricator Hacks . | . . . . . Repair Station Hacks . | . . . . . Recycling Unit Hacks . | . . . . . Scanalyzer . | . . . . . Garrison Access Hacks . | . . . . . Unauthorized Hacks . | . . . . . Terminals . | . . . . . Fabricators . | . . . . . Repair Stations . | . . . . . Recycling Units . | . . . . . Scanalyzers . | . . . . . Garrison Access . | . . . . . Data Cores Recovered . | . . . . . Used . | . . . . . Hacking Detections 3 | . 2 1 . . Full Trace Events 2 | . 1 1 . . Feedback Events . | . . . . . Feedback Blocked . | . . . . . Robot Schematics Acquired . | . . . . . Robots Built . | . . . . . Matter . | . . . . . Time . | . . . . . Total Robot Build Rating . | . . . . . Part Schematics Acquired 1 | . 1 . . . Parts Built . | . . . . . Matter . | . . . . . Time . | . . . . . Total Part Build Rating . | . . . . . Parts Repaired . | . . . . . Time . | . . . . . Parts Recycled . | . . . . . Recycled Matter . | . . . . . Retrieved Matter . | . . . . . Retrieved Components . | . . . . . Parts Scanalyzed . | . . . . . Part Schematics Acquired . | . . . . . Parts Damaged . | . . . . . Bothacking | -11 -10 -10 -10 -9 ------------ Run | Scr Mat Min Exi Min Used RIF Installer . | . . . . . Robots Hacked . | . . . . . Non-combat . | . . . . . Combat . | . . . . . Robot Hacks Applied . | . . . . . Relay Couplers Released . | . . . . . Robots Rewired . | . . . . . Allies Hacked . | . . . . . Hacks Repelled . | . . . . . Allies | -11 -10 -10 -10 -9 -------- Run | Scr Mat Min Exi Min Total Allies 1 | . . 1 . . Largest Group 1 | . . 1 . . Highest-Rated Group 31 | . . 31 . . Highest-Rated Ally 31 | . . 31 . . Total Orders . | . . . . . Ally Attacks . | . . . . . Total Damage . | . . . . . Kills . | . . . . . Allies Corrupted . | . . . . . Allies Melted . | . . . . . Intel | -11 -10 -10 -10 -9 ------- Run | Scr Mat Min Exi Min Robot Analysis Total . | . . . . . Derelict Logs Recovered 2 | . . 2 . . Drone Launches . | . . . . . Drone Recoveries . | . . . . . Exploration | -11 -10 -10 -10 -9 ------------- Run | Scr Mat Min Exi Min Turns Passed 2196 | 215 435 1155 216 175 Spaces Moved 1419 | 114 234 706 265 100 Core 56 | 9 . 3 . 44 Treads 850 | 105 234 511 . . Legs . | . . . . . Wheels 513 | . . 192 265 56 Hover . | . . . . . Flight . | . . . . . Fastest Speed 50 | 50 160 80 80 90 Average Speed 132 | 151 160 137 81 138 Slowest Speed 200 | 160 160 160 90 200 Overloaded Moves . | . . . . . Propulsion Burnouts . | . . . . . Robots Hopped . | . . . . . Cave-ins Triggered . | . . . . . Exploration Rate (%) 46 | 5 44 99 62 20 Regions Visited 4 Branch Regions 3 Pre-discovered Areas 1 | . . . 1 . Known Exits Taken . | . . . . . Unknown Exits Taken 4 | 1 1 1 1 . Scrap Searched 1 | . . 1 . . Spaces Dug . | . . . . . Terrain Destroyed 121 | . 42 32 . 47 Melee . | . . . . . Projectile . | . . . . . AOE 121 | . 42 32 . 47 Terrain Rammed . | . . . . . Walls Destroyed . | . . . . . Machines Disabled . | . . . . . Actions | -11 -10 -10 -10 -9 --------- Run | Scr Mat Min Exi Min Total 1577 | 137 260 794 266 120 Wait 5 | . . 5 . . Move 1415 | 113 233 705 264 100 Hop . | . . . . . Pick Up 21 | 8 4 8 . 1 Fast Attach 1 | . 1 . . . Attach 16 | 6 . 6 . 4 Detach . | . . . . . Swap 9 | . 4 4 1 . Drop 6 | . . 5 1 . Fire 98 | 10 18 61 . 9 Melee 6 | . . . . 6 Ram . | . . . . . Kick . | . . . . . Crush . | . . . . . Escape Stasis . | . . . . . Rewire . | . . . . . Trap . | . . . . . Miscellaneous . | . . . . . Route ------- -11/Scrapyard -10/Materials -10/Mines (discovered 3 exits: *Mat x2 / *Exi) -10/Exiles -9/Mines History --------- Turn | Location | Event 4 | -11/Scrapyard | Discovered new exit (range 16) 216 | -11/Scrapyard | Entered Materials 325 | -10/Materials | Build established: Mutant 597 | -10/Materials | Discovered new exit (range 13) 651 | -10/Materials | Entered Mines 768 | -10/Mines | A weapon hastily lodged in a ceiling crevice suddenly fell to the ground 1006 | -10/Mines | Deemed a non-threat by the Exiles lab entrance 1008 | -10/Mines | Discovered new exit (range 5) 1122 | -10/Mines | Identified exit to Materials 1128 | -10/Mines | Received a Mining Laser from a helpful Derelict 1241 | -10/Mines | Received a Rocket Launcher from a helpful Derelict 1592 | -10/Mines | Lost 4 parts (1p2n1w) 1685 | -10/Mines | Core integrity fell below 50% 1710 | -10/Mines | Discovered exit to Materials (range 4) 1806 | -10/Mines | Entered Exiles 1830 | -10/Exiles | Met 8R-AWN 1843 | -10/Exiles | Met EX-HEX 1868 | -10/Exiles | Met EX-BIN 1879 | -10/Exiles | Aligned with FarCom system 1879 | -10/Exiles | Given EX-Vault access code 1923 | -10/Exiles | Opened EX-Vault 1942 | -10/Exiles | Warned to stay clear of 0b10 Research branches 1956 | -10/Exiles | Exiles lab attacked by MAIN.C 1971 | -10/Exiles | Learned location of Zion (-7) 2013 | -10/Exiles | Discovered new exit (range 12) 2022 | -10/Exiles | Entered Mines 2023 | -9/Mines | Assembled infested the area 2093 | -9/Mines | Core integrity fell below 20% 2132 | -9/Mines | Lost 6 parts (1p2n3w) 2137 | -9/Mines | Destroyed 10 combat bots 2197 | -9/Mines | Destroyed by as-79218 with Assembled F-torch Last Messages --------------- 02152_ Destroyed Welding Torch. 02152_ Destroyed Wheel. 02154_ Sneak attack on U-05 Engineer. 02154_ Destroyed Wheel. 02154_ Destroyed Structural Scanner. 02154_ Destroyed Terrain Scanner. 02154_ Destroyed Lgt. Ion Engine. 02154_ U-05 Engineer destroyed. 02154_ U-05 Engineer builds a Wall. 02156_ Acquired 20 matter. 02158_ U-05 Engineer lays Concrete. 02162_ U-05 Engineer builds a Wall. 02164_ The unstable cave ceiling collapses. 02166_ U-05 Engineer lays Concrete. 02171_ The unstable cave ceiling collapses. 02171_ U-05 Engineer lays Concrete. 02176_ Acquired 10 matter. 02177_ U-05 Engineer lays Concrete. 02180_ Acquired 10 matter. 02181_ U-05 Engineer lays Concrete. Map ----- +----------------------------------------------------+ | ?????????????????????????????????????????????????? | | ?????????????????????????????????????????????????? | | ?????????????????????????????????????????????????? | | ?????????????????????????????????????????????????? | | ?????????????????????????????????????????????????? | | ?????????????????????????????????????????????????? | | ?????????????????????????????????????????????????? | | ?????????????????????????????????????????????????? | | ?????????????????????????????????????????????????? | | ?????????????????????????????????????????????????? | | ?????????????????????????????????????????????????? | | ?????????????????????????????????????????????????? | | ?????????????????????????????????????????????????? | | ?????????????????????????????????????????????????? | | ?????????????????????????????????????????????????? | | ?????????????????????????????????????????????????? | | ?????????????????????????????????????????????????? | | ?????????????????????????????????????????????????? | | ?????????????????????????????????????????????????? | | ?????????????????????????????####????????????????? | | ???????????????????????????### ##?????????#?????? | | ??????????????????????####### ##??????? #?????? | | ??????????g???????????# ##????? #?????? | | ??????????g??# ???????# # # ###### #?????? | | ?????????????# ######## % #?????? | | ??????????????# % @ a% #?????? | | ??????????????# ru#########% ######?????? | | ????????????????????????? ##% # #?????????? | | ??????????????????????????? ## #########?? | | ????????????????????????????# # ### #?? | | ????????????????????????????# #?? | | ???????????????????????????## # # #?? | | ?????????????????????????### %###?? | | ?????????????????????????# #??? | | ????????????????????????# # ###### ##??? | | ????????????????????????## ### # ##### | | ?????????????????????????####??# #### ## # | | ???????????????????????????????# #??#### ## # | | ???????????????????????????????# #?????## ! ### # | | ???????????????????????????ss?? #??????######?# # | | ???????????????????????????????###?????????????# # | | ???????????????????????????s???????????????????# # | | ???????????????????????????s???????????????????# | | ???????????????????????????????????????????????# # | | ???????????????????????????????????????????????# # | | ???????????????????????????????????????????????# # | | ???????????????????????????????????????????????# # | | ???????????????????????????????????????????????# # | | ???????????????????????????????????????????????# # | | ???????????????????????????????????????????????# | +----------------------------------------------------+ Best States ------------- Heat Dissipation 25 Energy Generation 10 Energy Capacity 125 Matter Stores 300 Matter Capacity 300 Sight Range 16 Terrain Scan Density 10 Resistance: KI 20 Resistance: TH 20 Resistance: EX 20 Resistance: EM 20 Resistance: I 20 Resistance: S 20 Resistance: P 20 Power Shielding 33 Weapon Shielding 33 Evasion (%) 50 Recoil Reduction 2 Offensive Hacking 10 Item Schematics ----------------- Lrg. Storage Unit | -10/Materials | Hacked Robot Schematics ------------------ None Fabricated ------------ Nothing Alien Tech Used ----------------- None Achievements -------------- None Challenges ------------ None Game ------ Seed TransportExplosiveKit Manual? 0 Play Time 00:18:07 Cumulative 176.6 hours Start 2021.08.03 @ 16:51:02 End 2021.08.03 @ 17:07:45 Sessions 1 Manual Loads 0 Difficulty Adventurer Special Mode None Game No. 206 Rogue 106 Adventurer 54 Explorer 46 Win Type - Total 7 Types 6/0/1/0/0/0/0/0/0 Lore% 32 Gallery% 66 Achievement% 52 Wizard Run 0 Options --------- ASCII 0 Keyboard 0 Movement Mouse Keybinds 0 Fullscreen 1 Font 12/Smallcaps Map View 83x54 Tactical HUD 1 Map Filters NONE Filters NONE Steam 1 RUN: 296a1345-e028-4c66-81cb-dad3a7845921